bitfinex-derivatives/quotes_ETHF0:USTF0_20250410
["timestamp","ask_amount","ask_price","bid_price","bid_amount"]
[1744253388702,0.50004902,1633.5,1633.4,0.00739745]
[1744253388903,1.22483,1633.5,1633.4,0.00739745]
[1744253389101,3.51533,1633.5,1633.4,0.00739745]
[1744253390097,8.51533,1633.5,1633.4,0.00739745]
[1744253391096,2.2905,1633.5,1633.4,0.00739745]
[1744253391298,3.51533,1633.5,1633.4,1.23229745]
[1744253391604,8.51533,1633.5,1633.4,0.00739745]
[1744253395097,1.22528,1632.9,1632.8,4.364]
[1744253395303,1.22543,1632.7,1632.6,1.22548]
[1744253395697,1.23282745,1632.7,1632.6,1.25645453]
[1744253395897,2.29259745,1632.7,1632.6,1.25645453]
[1744253396099,0.00739745,1632.7,1632.6,1.25645453]
[1744253396297,0.00739745,1632.7,1632.6,6.25645453]
[1744253396504,0.00739745,1632.7,1632.6,6.28742725]
[1744253397007,0.00739745,1632.7,1632.6,6.30907385]
[1744253398207,0.00739745,1632.7,1632.6,1.30907385]
[1744253399007,1.23282745,1632.7,1632.6,1.30907385]
[1744253399208,0.00739745,1632.7,1632.6,1.30907385]
[1744253400509,1.23282745,1632.7,1632.6,0.08359385]
[1744253400906,1.23282745,1632.7,1632.6,1.30909385]
[1744253401111,1.23282745,1632.7,1632.6,0.08359385]
[1744253401404,0.00739745,1632.7,1632.6,1.30909385]
[1744253402312,1.23282745,1632.7,1632.6,0.08359385]
[1744253402506,0.00739745,1632.7,1632.6,1.30909385]
[1744253403910,0.00739745,1632.7,1632.6,3.83009385]
[1744253404610,0.00739745,1632.7,1632.6,8.83009385]
[1744253405402,1.22506,1633.2,1633.1,1.22509]
[1744253405604,1.22506,1633.2,1633.1,1.23248745]
[1744253405799,3.53904,1633.3,1633.1,1.23248745]
[1744253406014,3.53904,1633.3,1633.2,0.0909913]
[1744253406509,3.53904,1633.3,1633.2,0.12197552]
[1744253407306,8.53904,1633.3,1633.2,0.12197552]
[1744253407515,1.19449915,1632.7,1632.6,4.7633]
[1744253407707,0.00739745,1632.7,1632.6,5.9888]
[1744253407906,1.23282745,1632.7,1632.6,5.9888]
[1744253408606,0.00739745,1632.7,1632.6,5.9888]
[1744253408806,1.23282745,1632.7,1632.6,5.9888]
[1744253409105,2.46579745,1632.7,1632.6,5.9888]
[1744253409814,0.00739745,1632.7,1632.6,5.9888]
[1744253410413,3.69122745,1632.7,1632.6,5.9888]
[1744253410709,2.46579745,1632.7,1632.6,5.9888]
[1744253411213,0.00739745,1632.7,1632.6,6.01047697]
[1744253412012,0.00739745,1632.7,1632.6,11.01047697]
[1744253414517,0.00739745,1632.7,1632.6,14.21827697]
[1744253414716,7.15569738,1633.0,1632.9,1.22528]
[1744253414918,7.15569738,1633.0,1632.9,5.54467745]
[1744253415213,7.15569738,1633.0,1632.9,10.54467745]
[1744253415420,5.81691738,1633.0,1632.9,12.98615442]
[1744253415612,4.94e-06,1633.0,1632.9,12.98615442]
[1744253415813,7.96124895,1633.2,1633.1,1.22513]
[1744253416016,1.44359895,1633.2,1633.1,4.43293]
[1744253416321,11.53033124,1633.4,1633.3,1.22498]
[1744253416511,11.53033124,1633.4,1633.3,13.74478]
[1744253416813,11.53033124,1633.4,1633.3,54.54478]
[1744253417019,11.53033124,1633.4,1633.3,56.97897745]
[1744253417411,11.53033124,1633.4,1633.3,57.00065442]
[1744253419021,2.4843,1633.7,1633.5,1.22483]
[1744253419415,1.22456,1633.9,1633.5,1.25390442]
[1744253419721,2.4843,1633.8,1633.5,3.68070442]
[1744253420618,2.3117,1633.9,1633.5,3.68070442]
[1744253420924,4.43218,1634.1,1634.0,1.22445]
[1744253421120,4.43218,1634.1,1633.9,5.53547]
[1744253421318,4.43218,1634.1,1633.9,7.86117]
[1744253421520,2.28262558,1634.0,1633.9,7.86123]
[1744253422416,0.0091687,1634.1,1634.0,1.22445]
[1744253422616,0.0091687,1634.1,1634.0,3.55015]
[1744253425528,0.0091687,1634.1,1634.0,8.55015]
[1744253425831,0.0091687,1634.1,1634.0,3.55015]
[1744253426127,0.0091687,1634.1,1634.0,8.55015]
[1744253428029,0.0091687,1634.1,1634.0,9.0150577]
[1744253428228,0.0091687,1634.1,1634.0,4.0150577]
[1744253428825,0.0091687,1634.1,1634.0,5.53345]
[1744253429036,2.4340687,1634.1,1634.0,5.53345]
[1744253429525,3.6584487,1634.1,1634.0,4.309]
[1744253429721,2.4340687,1634.1,1634.0,5.53345]
[1744253430125,2.4340687,1634.1,1634.0,4.309]
[1744253430331,1.22445,1634.0,1633.9,1.22451]
[1744253430523,2.3359,1634.0,1633.9,5.53351]
[1744253431022,4.7785,1634.0,1633.9,5.53351]
[1744253431420,6.00295,1634.0,1633.9,5.53351]
[1744253431625,4.7785,1634.0,1633.9,5.53351]
[1744253433825,0.0091687,1634.1,1634.0,1.22445]
[1744253434226,5.6978687,1634.1,1633.9,5.53351]
[1744253434431,2.4809,1634.0,1633.9,5.53351]
[1744253434734,3.70535,1634.0,1633.9,4.309]
[1744253435437,2.4809,1634.0,1633.9,5.53353]
[1744253435826,2.4809,1634.0,1633.9,4.309]
[1744253436132,3.70535,1634.0,1633.9,4.309]
[1744253436832,3.70535,1634.0,1633.9,5.53353]
[1744253437234,3.70535,1634.0,1633.9,4.309]
[1744253437632,7.4809,1634.0,1633.5,5.56]
[1744253437836,3.06151,1633.8,1633.4,0.0091687]
[1744253438138,8.1641,1633.7,1633.5,1.22481]
[1744253438331,2.3586,1633.6,1633.5,1.22483]
[1744253438739,3.62973,1633.9,1633.7,1.22462]
[1744253438940,2.3586,1633.8,1633.7,1.22462]
[1744253442141,2.3586,1633.8,1633.7,4.43242]
[1744253444335,1.22447,1634.0,1633.7,3.2078]
[1744253444541,11.53033124,1635.1,1634.2,16.282]
[1744253444838,5.5155,1635.0,1634.5,3.2078]
[1744253445139,3.2078,1634.8,1634.7,1.22393]
[1744253445541,3.2078,1634.8,1634.6,4.3411687]
[1744253445741,2.3077,1634.7,1634.6,5.5651687]
[1744253451443,0.0091687,1634.9,1634.8,1.22385]
[1744253451647,2.4883687,1634.9,1634.8,4.43165]
[1744253451841,4.8127,1635.0,1634.9,1.22378]
[1744253452040,4.8127,1635.0,1634.9,3.58258]
[1744253452740,3.2078,1635.4,1635.3,1.22348]
[1744253452939,5.0,1635.4,1635.3,1.22348]
[1744253453439,0.0091687,1635.5,1635.4,1.2234]
[1744253453840,9.53082779,1635.7,1635.6,1.22325]
[1744253454042,11.53033124,1635.9,1635.6,1.22325]
[1744253454245,3.2078,1635.8,1635.5,4.33]
[1744253454639,3.2078,1635.8,1635.4,3.05849]
[1744253454852,11.53033124,1635.9,1635.8,1.2231]
[1744253455146,11.53033124,1635.9,1635.4,2.4428]
[1744253455147,2.5179,1635.7,1635.4,0.0091687]
[1744253455449,1.22333,1635.5,1635.4,0.0091687]
[1744253455945,13.59143,1635.5,1635.4,0.0091687]
[1744253456140,8.59143,1635.5,1635.4,0.0091687]
[1744253456749,8.59143,1635.5,1635.4,1.2325687]
[1744253457048,7.3681,1635.5,1635.4,1.2325687]
[1744253457238,9.0509687,1635.8,1635.5,1.22333]
[1744253457438,9.0509687,1635.8,1635.7,1.22318]
[1744253457645,10.2740687,1635.8,1635.7,1.22318]
[1744253457849,15.2740687,1635.8,1635.7,1.22318]
[1744253458146,9.0509687,1635.8,1635.7,1.22318]
[1744253458335,5.8431687,1635.8,1635.7,1.22318]
[1744253459349,0.0091687,1635.8,1635.7,1.22318]
[1744253460050,1.2322687,1635.8,1635.7,1.22318]
[1744253460351,0.0091687,1635.8,1635.7,1.22318]
[1744253460849,1.22332,1635.6,1635.5,1.22331]
[1744253461049,4.43112,1635.6,1635.5,1.22331]
[1744253461551,1.22333,1635.5,1635.4,0.0091687]
[1744253461753,4.6488,1635.5,1635.4,1.2325287]
[1744253462551,5.6325,1635.6,1635.5,1.22333]
[1744253462850,5.6325,1635.6,1635.5,3.57953]
[1744253463051,6.85575,1635.6,1635.5,3.57953]
[1744253463248,9.38425,1635.6,1635.5,2.3562]
[1744253463555,8.161,1635.6,1635.5,3.57953]
[1744253464353,1.22333,1635.5,1635.4,0.0091687]
[1744253464556,3.75183,1635.5,1635.4,1.2325687]
[1744253464753,3.75183,1635.5,1635.4,0.0091687]
[1744253465252,3.75183,1635.5,1635.4,1.2325687]
[1744253465453,2.5285,1635.5,1635.4,1.2325687]
[1744253466355,3.75183,1635.5,1635.4,1.2325687]
[1744253467057,3.2078,1635.6,1635.5,1.22333]
[1744253467249,3.2078,1635.6,1635.5,3.55833]
[1744253468355,7.05719,1635.7,1635.6,1.22325]
[1744253468547,10.26499,1635.7,1635.6,3.57125]
[1744253468756,2.4415687,1635.8,1635.7,1.22318]
[1744253469053,2.4415687,1635.8,1635.7,3.57118]
[1744253470455,3.6646687,1635.8,1635.7,3.57118]
[1744253471157,2.4415687,1635.8,1635.7,3.57118]
[1744253473057,2.4415687,1635.8,1635.4,0.0091687]
[1744253473058,1.22333,1635.5,1635.4,0.0091687]
[1744253473749,6.15153,1635.5,1635.4,0.0091687]
[1744253474353,16.98553,1635.5,1635.4,0.0091687]
[1744253476659,11.98553,1635.5,1635.4,1.2325687]
[1744253477963,5.834,1635.5,1635.4,1.2325687]
[1744253478154,7.05733,1635.5,1635.4,1.2325687]
[1744253478651,9.38503,1635.5,1635.4,1.2325687]
[1744253479858,3.55103,1635.5,1635.4,1.2325687]
[1744253480364,3.55103,1635.5,1635.4,0.0091687]
[1744253480859,8.55103,1635.5,1635.4,0.0091687]
[1744253481662,3.55103,1635.5,1635.4,0.0091687]
[1744253484055,8.55103,1635.5,1635.4,0.0091687]
[1744253484558,8.55103,1635.5,1635.4,8.7e-06]
[1744253485062,14.38503,1635.5,1635.4,8.7e-06]
[1744253487661,22.42757185,1635.5,1635.4,8.7e-06]
[1744253487861,1.22363,1635.1,1635.0,2.5109]
[1744253488167,4.43143,1635.1,1635.0,2.5109]
[1744253488357,6.80413,1635.1,1635.0,2.5109]
[1744253493067,1.2237,1635.0,1634.9,0.0091687]
[1744253493267,6.2169,1635.0,1634.9,0.0091687]
[1744253493664,6.2169,1635.0,1634.9,2.5168687]
[1744253494164,6.2169,1635.0,1634.9,0.0091687]
[1744253494769,14.484,1635.0,1634.9,0.0091687]
[1744253495264,3.06018,1634.6,1634.1,5.60333]
[1744253495470,4.4321,1634.3,1634.2,1.22426]
[1744253496570,1.2243,1634.2,1634.1,8.5253787]
[1744253496871,1.2243,1634.2,1634.1,7.3010687]
[1744253497073,1.2243,1634.2,1634.1,8.5254487]
[1744253497565,1.2243,1634.2,1634.1,8.5253887]
[1744253497763,3.2078,1634.3,1634.2,1.2243]
[1744253497966,3.2078,1634.3,1634.2,3.6873]
[1744253498362,7.0673287,1634.4,1634.3,1.22423]
[1744253498564,5.8431687,1634.4,1634.3,3.68723]
[1744253498767,5.8431687,1634.4,1634.3,8.68723]
[1744253499972,7.0673187,1634.4,1634.3,8.68723]
[1744253500174,7.0673187,1634.4,1634.3,7.463]
[1744253500373,1.2333187,1634.4,1634.3,7.463]
[1744253500670,0.0091687,1634.4,1634.3,8.68723]
[1744253501072,4.77782657,1634.4,1634.3,8.68723]
[1744253501475,6.00197657,1634.4,1634.3,8.68723]
[1744253501672,6.00197657,1634.4,1634.3,3.68723]
[1744253502074,6.00197657,1634.4,1634.3,2.463]
[1744253502271,6.00197657,1634.4,1634.3,3.68723]
[1744253502471,6.00197657,1634.4,1634.3,2.463]
[1744253502766,4.77782657,1634.4,1634.3,3.68723]
[1744253502971,6.00197657,1634.4,1634.3,3.68723]
[1744253503177,4.77782657,1634.4,1634.3,3.68723]
[1744253503481,6.00197657,1634.4,1634.3,2.463]
[1744253503779,6.00197657,1634.4,1634.3,3.68723]
[1744253505177,1.2333187,1634.4,1634.3,3.68723]
[1744253505379,0.0091687,1634.4,1634.3,3.68723]
[1744253508278,0.0091687,1634.4,1634.3,8.68723]
[1744253509774,1.2333187,1634.4,1634.3,8.68723]
[1744253510076,0.0091687,1634.4,1634.3,8.68723]
[1744253510274,1.2333187,1634.4,1634.3,3.68723]
[1744253510883,1.2333187,1634.4,1634.3,2.463]
[1744253511279,0.0091687,1634.4,1634.3,3.68723]
[1744253511774,1.2333187,1634.4,1634.3,3.68723]
[1744253514679,0.0091687,1634.4,1634.3,3.68723]
[1744253519189,1.2333187,1634.4,1634.3,3.68723]
[1744253519881,1.2333187,1634.4,1634.3,2.463]
[1744253520088,1.2243,1634.2,1634.1,6.0624087]
[1744253520591,1.2243,1634.2,1634.1,4.8380687]
[1744253520888,1.2243,1634.2,1634.1,0.0091687]
[1744253521085,3.6736,1634.2,1634.1,0.0091687]
[1744253521583,1.22475,1633.6,1633.5,93.27]
[1744253521784,3.2078,1633.9,1633.6,3.06186]
[1744253521984,2.3528,1634.1,1634.0,1.22445]
[1744253522184,2.3528,1634.1,1633.8,1.22459]
[1744253522496,1.22447,1634.0,1633.8,1.22459]
[1744253522793,1.22447,1634.0,1633.9,1.22453]
[1744253522991,1.22447,1634.0,1633.8,3.70394]
[1744253523194,1.22447,1634.0,1633.9,2.4794]
[1744253523594,1.22447,1634.0,1633.9,3.70393]
[1744253527204,1.22447,1634.0,1633.9,2.4794]
[1744253527603,1.22447,1634.0,1633.9,3.70393]
[1744253527804,1.22447,1634.0,1633.9,2.4794]
[1744253528004,1.22453,1633.9,1633.8,1.22454]
[1744253528303,1.22453,1633.9,1633.8,3.70134]
[1744253528799,1.22453,1633.9,1633.8,2.4768]
[1744253529200,4.43233,1633.9,1633.8,2.4768]
[1744253529403,1.2246,1633.8,1633.7,0.0091687]
[1744253529604,6.1537,1633.8,1633.7,2.4456687]
[1744253529805,6.1537,1633.8,1633.7,0.0091687]
[1744253530003,19.4539,1633.8,1633.7,8.7e-06]
[1744253530303,18.2293,1633.8,1633.1,12.02713925]
[1744253530497,1.22505,1633.2,1633.1,13.25222925]
[1744253530696,1.22505,1633.2,1633.1,9.59063925]
[1744253530904,1.22505,1633.2,1633.1,10.81576925]
[1744253532304,4.9382687,1633.3,1633.1,10.81576925]
[1744253532506,1.22505,1633.2,1633.1,10.81576925]
[1744253533497,1.22505,1633.2,1633.1,9.59063925]
[1744253533706,16.07465,1633.2,1633.1,9.59063925]
[1744253534008,16.07465,1633.2,1633.1,2.66225666]
[1744253534408,21.90865,1633.2,1633.1,1.21997666]
[1744253534710,21.90865,1633.2,1633.1,6.66e-06]
[1744253536611,1.22513,1633.1,1633.0,0.0091687]
[1744253536812,3.68653,1633.1,1633.0,0.0091687]
[1744253537308,3.68653,1633.1,1633.0,1.2343687]
[1744253537501,3.68653,1633.1,1633.0,0.0091687]
[1744253537805,8.68653,1633.1,1633.0,0.0091687]
[1744253538308,8.68653,1633.1,1633.0,8.7e-06]
[1744253538508,14.52053,1633.1,1633.0,8.7e-06]
[1744253541510,14.28918787,1633.1,1633.0,8.7e-06]
[1744253545115,9.52053,1633.1,1633.0,8.7e-06]
[1744253547220,9.52053,1633.1,1632.0,0.6128]
[1744253547221,3.2078,1632.8,1632.0,0.6128]
[1744253547412,1.22603,1631.9,1631.8,2.3796]
[1744253547608,4.43383,1631.9,1631.8,2.2957]
[1744253547807,4.44122745,1631.9,1631.8,2.2957]
[1744253548919,4.44122745,1631.9,1631.8,3.5218]
[1744253549116,4.44122745,1631.9,1631.8,2.2957]
[1744253550921,4.44122745,1631.9,1631.5,5.48828]
[1744253550922,3.21519745,1631.9,1631.5,4.262]
[1744253551215,1.22631,1631.6,1631.4,3.6017]
[1744253551413,1.23372745,1631.5,1631.4,3.6017]
[1744253551614,0.00739745,1631.5,1631.4,3.6017]
[1744253551921,0.00739745,1631.5,1631.4,8.6017]
[1744253552415,1.23372745,1631.5,1631.4,2.3753]
[1744253552612,4.44152745,1631.5,1631.4,2.3753]
[1744253557923,4.44152745,1631.5,1631.4,3.6017]
[1744253558123,4.44152745,1631.5,1631.4,2.3753]
[1744253558821,1.2264,1631.4,1631.3,2.3411]
[1744253559124,1.23379745,1631.4,1631.3,2.3411]
[1744253559725,1.22655,1631.2,1631.1,2.3815]
[1744253559921,4.43435,1631.2,1631.1,3.60813]
[1744253560129,4.44174745,1631.2,1631.1,2.3815]
[1744253561012,0.00739745,1631.2,1631.1,3.60813]
[1744253561218,0.00739745,1631.2,1631.1,8.60813]
[1744253561424,1.23394745,1631.2,1631.1,3.60813]
[1744253562121,4.44174745,1631.2,1631.1,2.3815]
[1744253563325,4.44174745,1631.2,1631.1,3.60813]
[1744253563725,3.21519745,1631.2,1631.1,3.60813]
[1744253563929,0.00739745,1631.2,1631.1,3.60813]
[1744253564526,1.23394745,1631.2,1631.1,3.60813]
[1744253564727,1.23394745,1631.2,1631.1,6.18093]
[1744253565025,4.44174745,1631.2,1631.1,4.9543]
[1744253565528,4.44174745,1631.2,1631.1,6.18093]
[1744253565929,4.44174745,1631.2,1631.1,4.9543]
[1744253567522,4.44174745,1631.2,1631.1,6.18093]
[1744253567831,1.23394745,1631.2,1631.1,6.18093]
[1744253568418,0.00739745,1631.2,1631.1,6.18093]
[1744253568618,1.23394745,1631.2,1631.1,6.18093]
[1744253569325,1.23394745,1631.2,1631.1,4.9543]
[1744253569531,4.44174745,1631.2,1631.1,4.9543]
[1744253569729,4.44174745,1631.2,1631.1,6.18093]
[1744253570030,4.44174745,1631.2,1631.1,4.9543]
[1744253570829,4.44174745,1631.2,1631.1,2.5728]
[1744253571020,6.83424745,1631.2,1631.1,2.5728]
[1744253572528,4.44174745,1631.2,1631.1,3.79943]
[1744253573316,4.44174745,1631.2,1631.1,2.5728]
[1744253573728,4.44174745,1631.2,1631.1,3.79943]
[1744253574729,4.44174745,1631.2,1631.1,2.5728]
[1744253575532,4.44174745,1631.2,1631.1,3.79943]
[1744253578932,4.44174745,1631.2,1631.1,2.5728]
[1744253579731,4.44174745,1631.2,1631.1,3.79943]
[1744253580833,4.44174745,1631.2,1631.1,2.5728]
[1744253581129,4.44174745,1631.2,1631.1,3.79943]
[1744253581831,4.44174745,1631.2,1631.1,2.5728]
[1744253582531,1.227,1630.7,1630.5,2.6093]
[1744253582731,1.227,1630.7,1630.6,5.0316]
[1744253582931,3.06767,1630.6,1630.2,6.58703606]
[1744253583135,3.2078,1630.3,1629.8,5.996]
[1744253583323,0.00739745,1630.4,1630.1,5.67774]
[1744253583528,6.27599,1630.3,1629.8,5.996]
[1744253583730,8.89775745,1630.3,1629.9,6.33241]
[1744253584028,5.82949745,1630.3,1630.0,2.6093]
[1744253584227,0.00739745,1630.2,1630.1,1.22738]
[1744253585135,0.00739745,1630.2,1630.1,12.22338]
[1744253585438,0.00739745,1630.2,1630.1,16.60638]
[1744253586228,0.00919766,1630.8,1630.7,1.22693]
[1744253586431,1.22668,1631.1,1630.9,1.22676]
[1744253586632,4.43448,1631.1,1630.9,1.22676]
[1744253586835,3.2078,1631.4,1631.0,4.383]
[1744253587137,11.53033124,1631.2,1631.1,1.22657]
[1744253588027,11.53033124,1631.2,1631.1,1.22663]
[1744253588440,11.53033124,1631.2,1631.1,6.22663]
[1744253589027,11.53033124,1631.2,1631.1,9.43443]
[1744253589434,12.75692124,1631.2,1631.0,3.65505766]
[1744253590841,11.53033124,1631.2,1631.1,1.22663]
[1744253591339,12.75693124,1631.2,1631.0,3.65508766]
[1744253591542,11.53033124,1631.2,1631.1,1.22663]
[1744253592041,3.21699766,1631.3,1631.2,1.22655]
[1744253592640,0.76554247,1631.9,1631.8,1.2261]
[1744253592936,7.10301371,1632.1,1631.8,1.2261]
[1744253592937,7.10301371,1632.1,1632.0,1.22595]
[1744253593132,7.10301371,1632.1,1632.0,45.23375]
[1744253594640,7.10301371,1632.1,1632.0,4.43375]
[1744253596041,7.10301371,1632.1,1632.0,7.00075]
[1744253598137,2.65249766,1632.2,1632.1,1.22588]
[1744253598344,0.00919766,1632.2,1632.1,1.22588]
[1744253598742,3.21699766,1632.2,1632.1,1.22588]
[1744253599637,0.00919766,1632.2,1632.1,1.22588]
[1744253605149,3.21699766,1632.2,1632.1,1.22588]
[1744253606754,5.66019766,1632.2,1632.1,1.22588]
[1744253609246,13.72470766,1632.2,1631.9,1.23519766]
[1744253609453,2.3942,1632.1,1632.0,1.22591]
[1744253609955,5.602,1632.1,1632.0,1.22591]
[1744253610259,5.602,1632.1,1632.0,4.43371]
[1744253610453,2.3942,1632.1,1632.0,4.43371]
[1744253610654,2.3942,1632.1,1632.0,6.79171]
[1744253612562,2.3942,1632.1,1632.0,4.43371]
[1744253612761,5.602,1632.1,1632.0,1.22591]
[1744253612960,5.602,1632.1,1632.0,4.43371]
[1744253613264,5.602,1632.1,1632.0,6.87871]
[1744253613562,0.00919766,1632.2,1632.1,1.22588]
[1744253613763,5.66719766,1632.2,1632.1,3.67088]
[1744253614858,5.66719766,1632.2,1632.1,1.22588]
[1744253615563,6.89299766,1632.2,1632.1,1.22588]
[1744253615765,5.66719766,1632.2,1632.1,1.22588]
[1744253616564,2.45939766,1632.2,1632.1,1.22588]
[1744253617364,2.45939766,1632.2,1632.1,3.71068]
[1744253618869,2.5616,1632.5,1632.2,3.06447]
[1744253619163,2.4037,1632.4,1632.3,4.43353]
[1744253620057,2.4037,1632.4,1632.3,6.90363]
[1744253621068,0.00919766,1632.5,1632.4,1.22565]
[1744253621261,3.21699766,1632.5,1632.4,3.70695]
[1744253622666,0.00919766,1632.5,1632.4,8.07295]
[1744253622862,2.5096,1632.8,1632.7,1.22543]
[1744253623072,8.32814371,1633.1,1633.0,1.2252]
[1744253623369,11.53594371,1633.1,1633.0,1.23259745]
[1744253623762,11.53594371,1633.1,1633.0,0.00739745]
[1744253624066,3.2078,1633.1,1633.0,1.23259745]
[1744253624460,5.7089,1633.1,1633.0,1.23259745]
[1744253624862,5.7089,1633.1,1633.0,3.76159745]
[1744253625365,2.5011,1633.1,1633.0,3.76159745]
[1744253627064,0.00919766,1633.2,1633.1,1.22513]
[1744253627372,0.00919766,1633.2,1633.1,9.48792745]
[1744253628475,7.10301371,1633.4,1633.3,1.22498]
[1744253628675,10.31081371,1633.4,1633.3,4.43278]
[1744253628868,11.53571371,1633.4,1633.3,3.21519745]
[1744253629073,11.53571371,1633.4,1633.3,0.00739745]
[1744253629274,14.00291371,1633.4,1633.3,0.00739745]
[1744253629779,6.8999,1633.4,1633.3,0.00739745]
[1744253631673,6.8999,1633.4,1633.3,1.23237745]
[1744253631865,6.8999,1633.4,1633.3,0.00739745]
[1744253632070,5.675,1633.4,1633.3,1.23237745]
[1744253632677,3.2078,1633.4,1633.3,1.23237745]
[1744253633075,5.6803,1633.4,1633.3,1.23237745]
[1744253633482,6.9052,1633.4,1633.3,1.23237745]
[1744253633680,5.6803,1633.4,1633.3,1.23237745]
[1744253634073,5.6803,1633.4,1633.3,3.81997745]
[1744253634373,6.9052,1633.4,1633.3,3.81997745]
[1744253634570,6.9052,1633.4,1633.3,2.59499745]
[1744253634873,6.9052,1633.4,1633.3,3.81997745]
[1744253635279,6.9052,1633.4,1633.3,2.59499745]
[1744253635478,6.9052,1633.4,1633.3,0.00739745]
[1744253635680,6.9052,1633.4,1633.3,1.23237745]
[1744253635873,6.9052,1633.4,1633.3,0.00739745]
[1744253637381,15.113,1633.4,1633.3,0.00739745]
[1744253638183,12.7391913,1633.4,1633.3,0.00739745]
[1744253638384,20.9469913,1633.4,1633.3,0.00739745]
[1744253640782,15.9469913,1633.4,1633.3,0.00739745]
[1744253640982,20.9469913,1633.4,1633.3,0.00739745]
[1744253641491,1.2252,1633.0,1632.9,0.00919766]
[1744253641786,1.22528,1632.9,1632.8,1.22534]
[1744253641992,3.81067745,1632.9,1632.8,1.22534]
[1744253642186,7.00927234,1632.9,1632.8,1.22534]
[1744253642677,5.78399234,1632.9,1632.8,1.22534]
[1744253642876,3.81067745,1632.9,1632.8,1.22534]
[1744253643985,1.22535,1632.8,1632.7,1.23455766]
[1744253644185,3.75245,1632.8,1632.7,0.00919766]
[1744253644483,10.16624234,1632.8,1632.7,0.00919766]
[1744253644784,6.95844234,1632.8,1632.7,0.00919766]
[1744253652591,1.22565,1632.4,1632.3,2.5716]
[1744253652782,1.22573,1632.3,1632.2,11.36214]
[1744253652983,3.81682745,1632.3,1632.2,12.6078]
[1744253653177,3.81682745,1632.3,1632.2,3.2078]
[1744253653685,1.22588,1632.1,1632.0,3.69735]
[1744253654092,1.23327745,1632.1,1632.0,3.69735]
[1744253656786,0.00739745,1632.1,1632.0,3.69735]
[1744253657188,0.00919766,1632.4,1632.3,1.22573]
[1744253657391,0.00919766,1632.4,1632.3,4.43353]
[1744253657587,1.23484766,1632.4,1632.3,9.35733]
[1744253658388,1.22573,1632.3,1632.2,2.4191]
[1744253658592,1.22573,1632.3,1632.2,6.0894]
[1744253658891,1.22573,1632.3,1632.2,4.8636]
[1744253659393,1.22573,1632.3,1632.2,6.0894]
[1744253659588,3.72661766,1632.4,1632.3,1.22573]
[1744253659790,4.43351255,1632.4,1632.3,3.67023]
[1744253659992,0.00919766,1632.4,1632.3,3.67023]
[1744253662997,1.23484766,1632.4,1632.3,3.67023]
[1744253663289,0.00919766,1632.4,1632.3,3.67023]
[1744253663495,0.00919766,1632.4,1632.3,12.95623]
[1744253669599,0.00919766,1632.4,1632.3,53.75623]
[1744253670198,1.22544,1632.7,1632.4,3.06411]
[1744253670401,1.2255,1632.6,1632.5,10.8112]
[1744253670596,1.2255,1632.6,1632.5,12.03678]
[1744253671397,4.42409489,1632.6,1632.5,7.6034]
[1744253671593,4.42409489,1632.6,1632.5,8.82898]
[1744253672293,4.42409489,1632.6,1632.5,7.6034]
[1744253672895,1.22565,1632.4,1632.3,3.2078]
[1744253673093,1.22573,1632.3,1632.2,2.4719]
[1744253673605,1.2258,1632.2,1632.1,15.15388]
[1744253673804,3.8435,1632.2,1632.1,15.15388]
[1744253674303,3.8435,1632.2,1632.1,17.62578]
[1744253674599,1.22577,1632.3,1632.1,16.3999]
[1744253674905,3.84349,1632.3,1632.2,2.4719]
[1744253675105,7.04208489,1632.3,1632.2,2.4719]
[1744253676108,7.04208489,1632.3,1632.2,3.6977]
[1744253678012,5.81629489,1632.3,1632.2,3.6977]
[1744253678302,1.22572,1632.4,1632.3,1.22573]
[1744253678604,1.22561,1632.5,1632.4,1.22565]
[1744253678806,6.95880489,1632.5,1632.4,6.19255]
[1744253679412,2.5346,1632.5,1632.4,6.19255]
[1744253679702,3.76018,1632.5,1632.4,6.19255]
[1744253679908,5.8339913,1632.6,1632.4,6.19249]
[1744253680109,12.79274619,1632.6,1632.5,3.67918]
[1744253680603,5.8339913,1632.6,1632.5,9.29588]
[1744253681103,7.0594913,1632.6,1632.5,9.29588]
[1744253681715,5.8339913,1632.6,1632.5,9.29588]
[1744253681914,7.0594913,1632.6,1632.5,9.29588]
[1744253682114,6.19538766,1632.7,1632.5,9.29588]
[1744253682314,1.2255,1632.6,1632.5,9.29588]
[1744253683915,3.8092,1632.6,1632.5,9.29588]
[1744253686012,1.22565,1632.4,1632.3,7.4938]
[1744253686618,3.81715,1632.4,1632.3,7.4938]
[1744253687921,3.81715,1632.4,1632.3,8.71953]
[1744253688518,3.81715,1632.4,1632.3,7.4938]
[1744253689017,3.81715,1632.4,1632.3,8.71953]
[1744253689324,3.81715,1632.4,1632.3,7.4938]
[1744253689515,7.01574489,1632.4,1632.3,4.286]
[1744253690221,7.01574489,1632.4,1632.3,5.51173]
[1744253690920,5.79009489,1632.4,1632.3,5.51173]
[1744253691428,7.01574489,1632.4,1632.3,5.51173]
[1744253691931,7.01574489,1632.4,1632.3,4.286]
[1744253693229,1.22578,1632.3,1632.2,1.2258]
[1744253693432,6.12408,1632.3,1632.2,1.2258]
[1744253693625,9.32267489,1632.3,1632.2,1.2258]
[1744253694026,9.32267489,1632.3,1632.1,13.62171]
[1744253694224,1.22571,1632.4,1632.3,1.22572]
[1744253694433,7.04200489,1632.4,1632.3,1.22572]
[1744253695028,8.32864371,1632.5,1632.4,1.22565]
[1744253695528,1.22565,1632.4,1632.3,6.81137]
[1744253697227,3.71215,1632.4,1632.3,6.81137]
[1744253697829,6.91074489,1632.4,1632.3,5.5857]
[1744253698026,1.2258,1632.2,1632.1,13.62176]
[1744253698429,3.7123,1632.2,1632.1,13.62176]
[1744253699832,3.7123,1632.2,1632.1,16.09636]
[1744253700931,6.91089489,1632.2,1632.1,14.8705]
[1744253702233,6.91089489,1632.2,1632.1,16.09638]
[1744253702933,6.91089489,1632.2,1632.1,14.8705]
[1744253705334,6.91089489,1632.2,1632.1,16.09638]
[1744253705536,6.91089489,1632.2,1632.1,14.8705]
[1744253706536,6.91089489,1632.2,1632.1,11.6627]